fUST/lending_fUST_20251013
["ID","MTS","AMOUNT","RATE_DAILY","PERIOD"]
[391066584,1760299840919,-151.0,0.00024142,7]
[391066585,1760299840928,-151.0,0.00024142,7]
[391066586,1760299840937,-151.0,0.00024142,7]
[391066587,1760299840947,-174.074912,0.00024142,7]
[391066588,1760299840957,-8735.76005267,0.0002415,2]
[391066589,1760299841023,-50000.0,0.0002399,2]
[391066590,1760299841032,-8536.5835825,0.0002415,2]
[391066591,1760299841043,-7727.65636483,0.0002415,2]
[391066592,1760299841052,-452.40164819,0.0002417,2]
[391066593,1760299841061,-500.0,0.00024173,2]
[391066594,1760299841069,-500.0,0.00024173,2]
[391066595,1760299841079,-500.0,0.00024173,2]
[391066596,1760299841087,-501.52986727,0.00024173,2]
[391066597,1760299841096,-500.0,0.00024173,2]
[391066598,1760299841106,-500.0,0.00024173,2]
[391066599,1760299841115,-500.0,0.00024173,2]
[391066600,1760299841124,-500.0,0.00024173,2]
[391066601,1760299841133,-606.43592098,0.00024173,2]
[391066602,1760299841143,-500.0,0.00024173,2]
[391066603,1760299841153,-500.0,0.00024173,2]
[391066604,1760299841162,-507.94052013,0.00024173,2]
[391066605,1760299841171,-500.0,0.00024173,2]
[391066606,1760299841181,-156.21997499,0.00024173,2]
[391066607,1760299841189,-500.0,0.00024173,2]
[391066608,1760299841199,-500.0,0.00024173,2]
[391066609,1760299841208,-298.33637359,0.00024173,2]
[391066610,1760299841217,-329.81979326,0.00024173,2]
[391066611,1760299841227,-500.0,0.00024173,2]
[391066612,1760299841236,-418.64809036,0.00024173,2]
[391066613,1760299841245,-214.17942735,0.00024173,2]
[391066614,1760299841254,-500.0,0.00024173,2]
[391066615,1760299841263,-500.0,0.00024173,2]
[391066616,1760299841272,-503.61283294,0.00024173,2]
[391066617,1760299841280,-500.0,0.00024173,2]
[391066618,1760299841290,-500.0,0.00024173,2]
[391066619,1760299841298,-162.024338,0.00024173,2]
[391066620,1760299841308,-500.0,0.00024173,2]
[391066621,1760299841317,-500.0,0.00024173,2]
[391066622,1760299841326,-500.0,0.00024173,2]
[391066623,1760299841335,-500.0,0.00024173,2]
[391066624,1760299841344,-500.0,0.00024173,2]
[391066625,1760299841353,-500.0,0.00024173,2]
[391066626,1760299841362,-500.0,0.00024173,2]
[391066627,1760299841371,-200.78641973,0.00024173,2]
[391066628,1760299841380,-200.12045665,0.00024173,2]
[391066629,1760299841389,-500.0,0.00024173,2]
[391066630,1760299841398,-500.0,0.00024173,2]
[391066631,1760299841407,-500.00810227,0.00024173,2]
[391066632,1760299841416,-500.0,0.00024173,2]
[391066633,1760299841425,-500.0,0.00024173,2]
[391066634,1760299841434,-500.0,0.00024173,2]
[391066635,1760299841443,-500.0,0.00024173,2]
[391066636,1760299841452,-500.0,0.00024173,2]
[391066637,1760299841461,-500.0,0.00024173,2]
[391066638,1760299841470,-1680.0,0.00024229,2]
[391066639,1760299841479,-837.07782459,0.000243,2]
[391066640,1760299841488,-3905.07394915,0.000243,2]
[391066641,1760299841497,-3527.31670569,0.000243,2]
[391066642,1760299841507,-1426.3560547,0.000243,2]
[391066643,1760299841516,-1040.88797464,0.000243,2]
[391066644,1760299841526,-259.22770234,0.000243,2]
[391066645,1760299841535,-175.97057362,0.000243,2]
[391066646,1760299841545,-1698.69787414,0.000243,2]
[391066647,1760299841554,-2088.78532203,0.000243,7]
[391066648,1760299841563,-402.2877588,0.000243,7]
[391066649,1760299841572,-151.0,0.000243,7]
[391066650,1760299841581,-151.0,0.000243,7]
[391066651,1760299841591,-4664.85,0.000243,2]
[391066652,1760299841600,-168.0,0.00024344,2]
[391066653,1760299841609,-4758.09540707,0.00024393,2]
[391066654,1760299841619,-155.70483757,0.00024393,2]
[391066655,1760299841628,-1020.0,0.00024404,2]
[391066656,1760299841637,-166.0,0.00024418,3]
[391066657,1760299841646,-172.0,0.00024418,3]
[391066658,1760299841655,-175.0,0.00024418,3]
[391066659,1760299841664,-175.09993288,0.00024418,3]
[391066660,1760299841673,-157.0,0.00024418,3]
[391066661,1760299841682,-157.0,0.00024418,3]
[391066662,1760299841692,-157.0,0.00024418,3]
[391066663,1760299841701,-157.0,0.00024418,3]
[391066664,1760299841711,-157.0,0.00024418,3]
[391066665,1760299841720,-157.0,0.00024418,3]
[391066666,1760299841731,-160.05791752,0.00024418,3]
[391066667,1760299841740,-1000.0,0.00024421,2]
[391066668,1760299841749,-872.7417386,0.00024445,2]
[391066669,1760299841758,-665.15374356,0.000245,2]
[391066670,1760299841767,-151.0,0.000245,5]
[391066671,1760299841777,-500.0,0.00024506,2]
[391066672,1760299841787,-1000.0,0.00024521,2]
[391066673,1760299841796,-1000.0,0.00024521,2]
[391066674,1760299841806,-1020.0,0.00024547,2]
[391066675,1760299841815,-300.0,0.00024581,20]
[391066676,1760299841825,-300.0,0.00024581,20]
[391066677,1760299841834,-300.0,0.00024581,20]
[391066678,1760299841843,-300.0,0.00024581,20]
[391066679,1760299841852,-300.0,0.00024581,20]
[391066680,1760299841861,-300.0,0.00024581,20]
[391066681,1760299841871,-300.0,0.00024581,20]
[391066682,1760299841882,-300.0,0.00024581,20]
[391066683,1760299841892,-300.0,0.00024581,20]
[391066684,1760299841902,-300.0,0.00024581,20]
[391066685,1760299841911,-300.0,0.00024581,20]
[391066686,1760299841920,-300.0,0.00024581,20]
[391066687,1760299841930,-300.0,0.00024581,20]
[391066688,1760299841939,-300.0,0.00024581,20]
[391066689,1760299841949,-300.0,0.00024581,20]
[391066690,1760299841960,-600.0,0.00024581,20]
[391066691,1760299841969,-368.276194,0.00024595,2]
[391066692,1760299841980,-837.07782459,0.000246,2]
[391066693,1760299841990,-3905.07394915,0.000246,2]
[391066694,1760299841999,-3527.31670569,0.000246,2]
[391066695,1760299842009,-1426.3560547,0.000246,2]
[391066696,1760299842018,-1040.88797464,0.000246,2]
[391066697,1760299842027,-259.22770234,0.000246,2]
[391066698,1760299842036,-1698.69787414,0.000246,2]
[391066699,1760299842046,-151.0,0.000246,5]
[391066700,1760299842055,-155107.07882369,0.0002465,2]
[391066701,1760299842066,-508.22435483,0.0002465,2]
[391066702,1760299842076,-380.0,0.00024658,2]
[391066703,1760299842085,-151.0,0.00024658,7]
[391066704,1760299842094,-151.0,0.000247,6]
[391066705,1760299842103,-151.0,0.000247,8]
[391066706,1760299842113,-1020.0,0.00024711,2]
[391066707,1760299842122,-500.0,0.00024721,2]
[391066708,1760299842132,-500.0,0.00024721,2]
[391066709,1760299842141,-500.0,0.00024721,2]
[391066710,1760299842151,-1000.0,0.00024721,2]
[391066711,1760299842160,-500.0,0.00024721,2]
[391066712,1760299842169,-500.0,0.00024721,2]
[391066713,1760299842178,-1000.0,0.00024721,2]
[391066714,1760299842187,-538.39555659,0.00024721,2]
[391066715,1760299842197,-500.0,0.00024721,2]
[391066716,1760299842207,-500.0,0.00024721,2]
[391066717,1760299842217,-1000.0,0.00024721,2]
[391066718,1760299842227,-1020.0,0.00024767,2]
[391066719,1760299842236,-491.17893232,0.0002477,2]
[391066720,1760299842246,-14312.6288664,0.00024774,2]
[391066798,1760299844107,-593.0,0.00024774,2]
[391066801,1760299844118,-1736.98822712,0.00024774,2]
[391066803,1760299844127,-837.07782459,0.000248,2]
[391066805,1760299844136,-3905.07394915,0.000248,2]
[391066807,1760299844145,-3527.31670569,0.000248,2]
[391066809,1760299844154,-1426.3560547,0.000248,2]
[391066811,1760299844163,-1040.88797464,0.000248,2]
[391066813,1760299844172,-259.22770234,0.000248,2]
[391066815,1760299844181,-1698.69787414,0.000248,2]
[391066817,1760299844190,-1741.36134469,0.000248,4]
[391066819,1760299844199,-151.0,0.000248,6]
[391066821,1760299844208,-151.0,0.000248,8]
[391066823,1760299844216,-193.794776,0.000248,2]
[391066825,1760299844225,-17528.9837246,0.000248,2]
[391066827,1760299844235,-1004.053789,0.000248,2]
[391066829,1760299844244,-922.57809077,0.00024817,2]
[391066831,1760299844252,-1020.0,0.00024827,2]
[391066833,1760299844261,-160.0,0.00024833,2]
[391066835,1760299844271,-500.0,0.00024873,2]
[391066837,1760299844280,-500.0,0.00024873,2]
[391066839,1760299844288,-500.0,0.00024873,2]
[391066841,1760299844297,-150.0,0.00024873,2]
[391066843,1760299844306,-500.0,0.00024873,2]
[391066845,1760299844316,-200.37639351,0.00024873,2]
[391066847,1760299844325,-500.0,0.00024873,2]
[391066849,1760299844334,-493.76334866,0.000249,7]
[391067055,1760299846484,-330.0,0.00024418,3]
[391067057,1760299846494,-330.0,0.00024418,3]
[391067059,1760299846503,-846.23,0.0002489,10]
[391067061,1760299846513,-65092.83665134,0.000249,7]
[391067063,1760299846522,-417.15472785,0.000249,7]
[391067065,1760299846531,-2088.78532203,0.000249,7]
[391067067,1760299846540,-402.2877588,0.000249,7]
[391067069,1760299846549,-16728.13780422,0.000249,2]
[391067072,1760299846560,-2926.22191724,0.000249,2]
[391067134,1760299847696,-3261.44,0.000249,2]
[391067143,1760299873872,833.03,0.00019673,2]
[391067144,1760299881212,1683.0,0.00027397,120]
[391067145,1760299954486,822.43,0.00020301,2]
[391067147,1760300034527,811.96,0.00020228,2]
[391067148,1760300101610,646.0,0.00027,120]
[391067150,1760300122258,801.63,0.00020437,2]
[391067152,1760300186414,500.0,8.219e-05,2]
[391067153,1760300186909,500.0,8.493e-05,2]
[391067154,1760300187411,317.65,8.767e-05,2]
[391067155,1760300187434,182.35,8.767e-05,2]
[391067156,1760300187915,500.0,9.041e-05,2]
[391067157,1760300188413,500.0,9.315e-05,2]
[391067158,1760300188921,609.01,9.589e-05,2]
[391067159,1760300203139,791.43,0.00020284,2]
[391067160,1760300283841,781.35,0.00020124,2]
[391067161,1760300364067,771.41,0.00020498,2]
[391067162,1760300444843,761.59,0.0002034,2]
[391067164,1760300464450,1084.54229,0.00013699,2]
[391067165,1760300464674,1084.54229,0.00020187,2]
[391067166,1760300524758,751.9,0.00020428,2]
[391067168,1760300603665,742.33,0.00020297,2]
[391067169,1760300687760,732.88,0.00020581,2]
[391067171,1760300766980,723.55,0.00020788,2]
[391067173,1760300836504,5000.0,0.00020971,2]
[391067174,1760300846983,714.34,0.00020364,2]
[391067178,1760300914238,9285.67,0.0002,2]
[391067179,1760300914260,10000.01,0.0002,2]
[391067180,1760300914283,10000.01,0.0002,2]
[391067181,1760300914305,4338.85905028,0.0002,2]
[391067184,1760300927514,732.38,0.00020117,2]
[391067185,1760301013734,723.06,0.00020119,2]
[391067240,1760301038303,-300.0,0.00021411,2]
[391067241,1760301038312,-300.0,0.00021411,2]
[391067242,1760301038323,-1200.0,0.00021411,2]
[391067243,1760301038332,-2852.52634554,0.00021412,2]
[391067244,1760301038344,-2147.47365446,0.00021412,2]
[391067245,1760301038358,-206.03663634,0.00021412,2]
[391067246,1760301038367,-1446.12,0.00021948,2]
[391067247,1760301038375,-236.9421318,0.00022012,2]
[391067248,1760301038385,-300.0,0.0002206,20]
[391067249,1760301038394,-300.0,0.0002206,20]
[391067250,1760301038404,-300.0,0.0002206,20]
[391067251,1760301038413,-300.0,0.0002206,20]
[391067252,1760301038422,-300.0,0.0002206,20]
[391067253,1760301038431,-300.0,0.0002206,20]
[391067254,1760301038441,-300.0,0.0002206,20]
[391067255,1760301038450,-300.0,0.0002206,20]
[391067257,1760301038459,-300.0,0.0002206,20]
[391067259,1760301038469,-300.0,0.0002206,20]
[391067260,1760301038478,-300.0,0.0002206,20]
[391067261,1760301038489,-300.0,0.0002206,20]
[391067262,1760301038499,-300.0,0.0002206,20]
[391067263,1760301038508,-300.0,0.0002206,20]
[391067264,1760301038517,-135.11423941,0.0002206,20]
[391067265,1760301038529,-164.88576059,0.0002206,20]
[391067266,1760301038538,-1982.98575476,0.0002206,2]
[391067280,1760301040264,-5587.78870288,0.0002206,2]
[391067281,1760301040274,-1020.08467486,0.000225,2]
[391067282,1760301040286,-267.84762725,0.00022612,2]
[391067283,1760301040295,-710.12178566,0.00022755,2]
[391067284,1760301040307,-237.95859704,0.00022755,2]
[391067285,1760301040316,-269.38286285,0.0002277,2]
[391067293,1760301044251,-3306.15824414,0.0002277,2]
[391067305,1760301094602,759.36,0.00020334,2]
[391067306,1760301111940,151.0,0.000181,2]
[391067307,1760301112939,151.0,0.00018433,2]
[391067308,1760301114143,151.0,0.00018766,2]
[391067309,1760301114940,151.0,0.000191,2]
[391067310,1760301125664,-207.29,0.0002899,120]
[391067311,1760301175214,749.7,0.00020121,2]
[391067312,1760301210499,-677.12,0.0002899,120]
[391067326,1760301255333,740.15,0.00020121,2]
[391067329,1760301334320,730.73,0.00020138,2]
[391067330,1760301415287,721.43,0.00020179,2]
[391067332,1760301495807,712.25,0.00020089,2]
[391067333,1760301543190,-500.0,0.000305,60]
[391067334,1760301543217,-500.0,0.000305,60]
[391067335,1760301543240,-500.0,0.000305,60]
[391067336,1760301543263,-500.0,0.000305,60]
[391067337,1760301543286,-298.32,0.000305,60]
[391067338,1760301543308,-500.0,0.000305,60]
[391067339,1760301543332,-500.0,0.000305,60]
[391067340,1760301543355,-500.0,0.000305,60]
[391067341,1760301543378,-500.0,0.000305,60]
[391067342,1760301543399,-500.0,0.000305,60]
[391067343,1760301543422,-500.0,0.000305,60]
[391067344,1760301543446,-500.0,0.000305,60]
[391067345,1760301543470,-500.0,0.000305,60]
[391067346,1760301543493,-500.0,0.000305,60]
[391067347,1760301543516,-500.0,0.000305,60]
[391067348,1760301543538,-500.0,0.000305,60]
[391067349,1760301543561,-500.0,0.000305,60]
[391067350,1760301543586,-500.0,0.000305,60]
[391067351,1760301543612,-500.0,0.000305,60]
[391067352,1760301543637,-591.64,0.000305,60]
[391067353,1760301543660,-500.0,0.000305,60]
[391067354,1760301543683,-500.0,0.000305,60]
[391067355,1760301543709,-500.0,0.000305,60]
[391067356,1760301543733,-500.0,0.000305,60]
[391067357,1760301543758,-500.0,0.000305,60]
[391067358,1760301543781,-500.0,0.000305,60]
[391067359,1760301543805,-500.0,0.000305,60]
[391067360,1760301543827,-500.0,0.000305,60]
[391067361,1760301543853,-500.0,0.000305,60]
[391067362,1760301543874,-500.0,0.000305,60]
[391067363,1760301543896,-500.0,0.000305,60]
[391067364,1760301543918,-500.0,0.000305,60]
[391067365,1760301543940,-500.0,0.000305,60]
[391067366,1760301543966,-500.0,0.000305,60]
[391067367,1760301543989,-500.0,0.000305,60]
[391067368,1760301544012,-278.18676376,0.000305,60]
[391067369,1760301544034,-535.36,0.000305,60]
[391067370,1760301544060,-500.0,0.000305,60]
[391067371,1760301544087,-187.39627188,0.000305,60]
[391067372,1760301544112,-500.0,0.000305,60]
[391067373,1760301544138,-500.0,0.000305,60]
[391067374,1760301544163,-500.0,0.000305,60]
[391067375,1760301544187,-500.0,0.000305,60]
[391067376,1760301544215,-500.0,0.000305,60]
[391067377,1760301544239,-500.0,0.000305,60]
[391067378,1760301544262,-433.64,0.000305,60]
[391067379,1760301544286,-500.0,0.000305,60]
[391067380,1760301544309,-500.0,0.000305,60]
[391067381,1760301544332,-500.0,0.000305,60]
[391067382,1760301544355,-500.0,0.000305,60]
[391067383,1760301544377,-500.0,0.000305,60]
[391067384,1760301544400,-500.0,0.000305,60]
[391067385,1760301544423,-500.0,0.000305,60]
[391067386,1760301544444,-500.0,0.000305,60]
[391067387,1760301544468,-500.0,0.000305,60]
[391067388,1760301544491,-554.61,0.000305,60]
[391067389,1760301544513,-500.0,0.000305,60]
[391067390,1760301544536,-500.0,0.000305,60]
[391067391,1760301544559,-500.0,0.000305,60]
[391067392,1760301544581,-500.0,0.000305,60]
[391067393,1760301544608,-500.0,0.000305,60]
[391067394,1760301544630,-500.0,0.000305,60]
[391067395,1760301544654,-500.0,0.000305,60]
[391067396,1760301544679,-500.0,0.000305,60]
[391067397,1760301544705,-217.94269387,0.000305,60]
[391067398,1760301544727,-500.0,0.000305,60]
[391067399,1760301544750,-500.0,0.000305,60]
[391067400,1760301544772,-539.89,0.000305,60]
[391067401,1760301544795,-500.0,0.000305,60]
[391067402,1760301544817,-500.0,0.000305,60]
[391067403,1760301544840,-500.0,0.000305,60]
[391067404,1760301544862,-500.0,0.000305,60]
[391067405,1760301544884,-500.0,0.000305,60]
[391067406,1760301544907,-500.0,0.000305,60]
[391067407,1760301544929,-486.06054914,0.000305,60]
[391067408,1760301544953,-500.0,0.000305,60]
[391067409,1760301544976,-500.0,0.000305,60]
[391067410,1760301544998,-500.0,0.000305,60]
[391067411,1760301545021,-312.42181517,0.000305,60]
[391067412,1760301545045,-1352.21,0.000305,60]
[391067413,1760301545068,-1352.21,0.000305,60]
[391067414,1760301545095,-1352.21,0.000305,60]
[391067415,1760301545119,-1352.21,0.000305,60]
[391067416,1760301545142,-1352.21,0.000305,60]
[391067417,1760301545165,-1352.21,0.000305,60]
[391067418,1760301545188,-1352.21,0.000305,60]
[391067419,1760301545215,-1352.21,0.000305,60]
[391067420,1760301545240,-1352.21,0.000305,60]
[391067421,1760301545271,-1352.21,0.000305,60]
[391067422,1760301545300,-1352.21,0.000305,60]
[391067423,1760301545327,-1352.21,0.000305,60]
[391067424,1760301545352,-1352.21,0.000305,60]
[391067425,1760301545379,-1352.21,0.000305,60]
[391067426,1760301545407,-1352.21,0.000305,60]
[391067427,1760301545434,-1352.21,0.000305,60]
[391067428,1760301545462,-1352.21,0.000305,60]
[391067429,1760301545490,-1352.21,0.000305,60]
[391067430,1760301545518,-1352.21,0.000305,60]
[391067431,1760301545544,-1352.21,0.000305,60]
[391067432,1760301545572,-1352.21,0.000305,60]
[391067433,1760301545601,-1352.21,0.000305,60]
[391067434,1760301545628,-1352.21,0.000305,60]
[391067435,1760301545656,-1352.24,0.000305,60]
[391067436,1760301545684,-500.0,0.000305,60]
[391067437,1760301545710,-500.0,0.000305,60]
[391067438,1760301545736,-500.0,0.000305,60]
[391067439,1760301545766,-343.95,0.000305,60]
[391067440,1760301545793,-500.0,0.000305,60]
[391067441,1760301545819,-500.0,0.000305,60]
[391067442,1760301545846,-500.0,0.000305,60]
[391067443,1760301545873,-533.64224286,0.000305,60]
[391067444,1760301545900,-500.0,0.000305,60]
[391067445,1760301545926,-500.0,0.000305,60]
[391067446,1760301545951,-500.0,0.000305,60]
[391067447,1760301545976,-500.0,0.000305,60]
[391067448,1760301546002,-500.0,0.000305,60]
[391067449,1760301546030,-377.13,0.000305,60]
[391067450,1760301546056,-500.0,0.000305,60]
[391067451,1760301546082,-500.0,0.000305,60]
[391067452,1760301546108,-500.0,0.000305,60]
[391067453,1760301546134,-365.14,0.000305,60]
[391067454,1760301546158,-500.0,0.000305,60]
[391067455,1760301546185,-500.0,0.000305,60]
[391067456,1760301546213,-500.0,0.000305,60]
[391067457,1760301546239,-500.0,0.000305,60]
[391067458,1760301546264,-500.0,0.000305,60]
[391067459,1760301546288,-500.0,0.000305,60]
[391067460,1760301546315,-500.0,0.000305,60]
[391067461,1760301546342,-500.0,0.000305,60]
[391067462,1760301546368,-500.0,0.000305,60]
[391067463,1760301546394,-500.0,0.000305,60]
[391067464,1760301546421,-500.0,0.000305,60]
[391067465,1760301546447,-500.0,0.000305,60]
[391067466,1760301546474,-500.0,0.000305,60]
[391067467,1760301546499,-500.0,0.000305,60]
[391067468,1760301546525,-500.0,0.000305,60]
[391067469,1760301546551,-163.4,0.000305,60]
[391067470,1760301546575,-500.0,0.000305,60]
[391067471,1760301546602,-500.0,0.000305,60]
[391067472,1760301546628,-500.98264154,0.000305,60]
[391067473,1760301546652,-545.94,0.000305,60]
[391067474,1760301546678,-500.0,0.000305,60]
[391067475,1760301546703,-500.0,0.000305,60]
[391067476,1760301546728,-500.0,0.000305,60]
[391067477,1760301546754,-500.0,0.000305,60]
[391067478,1760301546780,-500.0,0.000305,60]
[391067479,1760301546804,-500.0,0.000305,60]
[391067480,1760301546830,-500.0,0.000305,60]
[391067481,1760301546856,-500.0,0.000305,60]
[391067482,1760301546882,-500.0,0.000305,60]
[391067483,1760301546909,-543.64,0.000305,60]
[391067484,1760301546945,-500.0,0.000305,60]
[391067485,1760301546974,-500.0,0.000305,60]
[391067486,1760301546999,-500.0,0.000305,60]
[391067487,1760301547026,-500.0,0.000305,60]
[391067488,1760301547054,-500.0,0.000305,60]
[391067489,1760301547081,-500.0,0.000305,60]
[391067490,1760301547107,-500.0,0.000305,60]
[391067491,1760301547133,-500.0,0.000305,60]
[391067492,1760301547161,-500.0,0.000305,60]
[391067493,1760301547187,-500.0,0.000305,60]
[391067494,1760301547216,-500.0,0.000305,60]
[391067495,1760301547243,-500.0,0.000305,60]
[391067496,1760301547269,-384.88020097,0.000305,60]
[391067497,1760301547297,-500.0,0.000305,60]
[391067498,1760301547322,-500.0,0.000305,60]
[391067499,1760301547349,-500.0,0.000305,60]
[391067500,1760301547374,-627.55160979,0.000305,60]
[391067501,1760301547399,-500.0,0.000305,60]
[391067502,1760301547424,-500.0,0.000305,60]
[391067503,1760301547452,-500.0,0.000305,60]
[391067504,1760301547479,-500.0,0.000305,60]
[391067505,1760301547505,-500.0,0.000305,60]
[391067506,1760301547531,-500.0,0.000305,60]
[391067507,1760301547891,-500.0,0.000305,60]
[391067508,1760301547916,-500.0,0.000305,60]
[391067509,1760301547940,-470.09024654,0.000305,60]
[391067510,1760301547965,-500.0,0.000305,60]
[391067511,1760301547990,-500.0,0.000305,60]
[391067512,1760301548015,-500.0,0.000305,60]
[391067513,1760301548039,-500.0,0.000305,60]
[391067514,1760301548063,-500.0,0.000305,60]
[391067515,1760301548091,-500.0,0.000305,60]
[391067516,1760301548125,-500.0,0.000305,60]
[391067517,1760301548149,-500.0,0.000305,60]
[391067518,1760301548173,-500.0,0.000305,60]
[391067519,1760301548200,-500.0,0.000305,60]
[391067520,1760301548232,-500.0,0.000305,60]
[391067521,1760301548266,-500.0,0.000305,60]
[391067522,1760301548291,-500.0,0.000305,60]
[391067523,1760301548316,-500.0,0.000305,60]
[391067524,1760301548343,-500.98614057,0.000305,60]
[391067525,1760301548373,-500.0,0.000305,60]
[391067526,1760301548398,-500.0,0.000305,60]
[391067527,1760301548425,-500.0,0.000305,60]
[391067528,1760301548450,-500.0,0.000305,60]
[391067529,1760301548473,-501.07650477,0.000305,60]
[391067530,1760301548495,-500.0,0.000305,60]
[391067531,1760301548518,-500.0,0.000305,60]
[391067532,1760301548543,-500.0,0.000305,60]
[391067533,1760301548569,-500.0,0.000305,60]
[391067534,1760301548596,-500.0,0.000305,60]
[391067535,1760301548620,-529.02,0.000305,60]
[391067536,1760301548645,-500.0,0.000305,60]
[391067537,1760301548670,-500.0,0.000305,60]
[391067538,1760301548695,-500.0,0.000305,60]
[391067539,1760301548725,-500.0,0.000305,60]
[391067540,1760301548750,-500.0,0.000305,60]
[391067541,1760301548774,-301.51615066,0.000305,60]
[391067542,1760301548800,-500.0,0.000305,60]
[391067543,1760301548823,-500.0,0.000305,60]
[391067544,1760301548854,-500.0,0.000305,60]
[391067545,1760301548878,-500.0,0.000305,60]
[391067546,1760301548903,-500.0,0.000305,60]
[391067547,1760301548926,-500.0,0.000305,60]
[391067548,1760301548953,-500.0,0.000305,60]
[391067549,1760301548977,-500.0,0.000305,60]
[391067550,1760301549000,-500.0,0.000305,60]
[391067551,1760301549023,-500.0,0.000305,60]
[391067552,1760301549047,-500.0,0.000305,60]
[391067553,1760301549071,-500.0,0.000305,60]
[391067554,1760301549096,-500.0,0.000305,60]
[391067555,1760301549119,-500.0,0.000305,60]
[391067556,1760301549143,-500.0,0.000305,60]
[391067557,1760301549166,-501.20792899,0.000305,60]
[391067558,1760301549192,-500.0,0.000305,60]
[391067559,1760301549220,-500.0,0.000305,60]
[391067560,1760301549244,-500.0,0.000305,60]
[391067561,1760301549268,-500.0,0.000305,60]
[391067562,1760301549292,-500.0,0.000305,60]
[391067563,1760301549316,-500.0,0.000305,60]
[391067564,1760301549340,-312.58367223,0.000305,60]
[391067565,1760301549364,-500.0,0.000305,60]
[391067566,1760301549387,-500.0,0.000305,60]
[391067567,1760301549410,-500.0,0.000305,60]
[391067568,1760301549433,-361.26,0.000305,60]
[391067569,1760301549481,-500.0,0.000305,60]
[391067570,1760301549504,-500.0,0.000305,60]
[391067571,1760301549539,-500.0,0.000305,60]
[391067572,1760301549564,-500.0,0.000305,60]
[391067573,1760301549588,-500.0,0.000305,60]
[391067574,1760301549613,-500.0,0.000305,60]
[391067575,1760301549636,-500.0,0.000305,60]
[391067576,1760301549659,-500.0,0.000305,60]
[391067577,1760301549685,-500.0,0.000305,60]
[391067578,1760301549709,-500.0,0.000305,60]
[391067579,1760301549733,-629.63,0.000305,60]
[391067580,1760301549757,-500.0,0.000305,60]
[391067581,1760301549783,-500.0,0.000305,60]
[391067582,1760301549810,-290.16,0.000305,60]
[391067583,1760301549835,-500.0,0.000305,60]
[391067584,1760301549859,-500.0,0.000305,60]